Body Name,ONS SNAC ID,Pay Date,Transaction No,Amount �,Supplier Name,Company Registration No,Department,Account Name,CIPFA Service Reporting
Swale Borough Council,29UM,07/12/2016,1146561,1060.00,A.C MACKLIN FENCING,                         ,LEISURE & OPEN SPACES,Maintenance - Grounds,Cultural and Related Services
Swale Borough Council,29UM,07/12/2016,1146561,515.00,A.C MACKLIN FENCING,                         ,LEISURE & OPEN SPACES,Maintenance - Grounds,Cultural and Related Services
Swale Borough Council,29UM,07/12/2016,1146564,6000.00,ABAVUS LTD,6082412                  ,CONTRACT & PROCUREMENT,Equipment Maintenance,Internal Trading Cost Centres
Swale Borough Council,29UM,07/12/2016,1146784,544.50,ACORN MAINTENANCE SERVICES,3546898                  ,HOUSING SERVICES,Housing Renovation Grants,Not used in this Structure
Swale Borough Council,29UM,07/12/2016,1146703,700.35,AMETHYST HORTICULTURE LTD,4464660                  ,LEISURE & OPEN SPACES,Nursery Stock,Environmental and Regulatory Services
Swale Borough Council,29UM,07/12/2016,1146699,12881.69,APCOA PARKING (UK) LTD,2572947                  ,CAR PARKS,Private Contractors,Highway and Transport Services
Swale Borough Council,29UM,07/12/2016,1146699,19322.54,APCOA PARKING (UK) LTD,2572947                  ,CAR PARKS,Private Contractors,Highway and Transport Services
Swale Borough Council,29UM,07/12/2016,1146791,1725.00,ASCENDIT LIFTS LTD,3493530                  ,HOUSING SERVICES,Housing Renovation Grants,Not used in this Structure
Swale Borough Council,29UM,07/12/2016,1146604,294.66,BLENWOOD LTD,4383277                  ,LEISURE & OPEN SPACES,Nursery Stock,Cultural and Related Services
Swale Borough Council,29UM,07/12/2016,1146605,396.29,BLENWOOD LTD,4383277                  ,LEISURE & OPEN SPACES,Maintenance - Grounds,Cultural and Related Services
Swale Borough Council,29UM,07/12/2016,1146622,1452.94,BLENWOOD LTD,4383277                  ,LEISURE & OPEN SPACES,Grounds Contract Variations,Cultural and Related Services
Swale Borough Council,29UM,07/12/2016,1146635,922.80,BOUGHTON UNDER BLEAN BOWLS CLUB,                         ,TOURISM & SPORTS DEVELOPMENT,Grants & Subscriptions,Cultural and Related Services
Swale Borough Council,29UM,07/12/2016,1146677,11852.58,CAPITA BUSINESS SERVICES LTD,                         ,REVENUE SERVICES,Fees And Services,Housing
Swale Borough Council,29UM,07/12/2016,1146430,1295.00,CARRINGTON WEST LIMITED,07344853                 ,PLANNING SERVICES,Agency/Contract Staff,Internal Trading Cost Centres
Swale Borough Council,29UM,07/12/2016,1146632,345.00,CHEGWORTH GRAPHIC,7683594                  ,COMMUNICATIONS,Signage,Internal Trading Cost Centres
Swale Borough Council,29UM,07/12/2016,1146642,666.66,CLARKES SPORTS STUDIO,                         ,LEISURE & OPEN SPACES,Grants & Subscriptions,Cultural and Related Services
Swale Borough Council,29UM,07/12/2016,1146427,4021.93,COMENSURA LTD,04085767                 ,HUMAN RESOURCES,Agency/Contract Staff,Internal Trading Cost Centres
Swale Borough Council,29UM,07/12/2016,1146569,758.22,DHA PLANNING,2683290                  ,PLANNING SERVICES,Fees And Services,Internal Trading Cost Centres
Swale Borough Council,29UM,07/12/2016,1146730,308.00,DISCLOSURE & BARRING SERVICE (DT),                         ,DIRECTOR OF CORPORATE SERVICES,Fees And Services,Environmental and Regulatory Services
Swale Borough Council,29UM,07/12/2016,1146566,300.00,FREESTON WATER TREATMENT LTD,2002230                  ,HOUSING SERVICES,Buildings Maintenance,Housing
Swale Borough Council,29UM,07/12/2016,1146567,300.00,FREESTON WATER TREATMENT LTD,2002230                  ,HOUSING SERVICES,Buildings Maintenance,Housing
Swale Borough Council,29UM,07/12/2016,1146568,300.00,FREESTON WATER TREATMENT LTD,2002230                  ,HOUSING SERVICES,Buildings Maintenance,Housing
Swale Borough Council,29UM,07/12/2016,1146578,295.00,HALAROSE LIMITED,1362834                  ,DEMOCRATIC & ELECTORAL SERVICES,Equipment Purchase,Central Services to the Public
Swale Borough Council,29UM,07/12/2016,1146582,592.00,HALAROSE LIMITED,1362834                  ,DEMOCRATIC & ELECTORAL SERVICES,Equipment Maintenance,Central Services to the Public
Swale Borough Council,29UM,07/12/2016,1146761,3949.00,HEADLEY BROTHERS LIMITED,00491836                 ,COMMUNICATIONS,Developing & Printing,Corporate & Democratic Core
Swale Borough Council,29UM,07/12/2016,1146625,-450.00,HOLM PLACE ANGLERS,                         ,COMMUNITY SAFETY,Grants & Subscriptions,Central Services to the Public
Swale Borough Council,29UM,07/12/2016,1146626,450.00,HOLM PLACE ANGLERS,                         ,COMMUNITY SAFETY,Grants & Subscriptions,Central Services to the Public
Swale Borough Council,29UM,07/12/2016,1146630,298.00,HUBBARD & HOUGHTON CONSTRUCTION LTD,                         ,HOUSING SERVICES,Staying Put small repairs (contractors),Housing
Swale Borough Council,29UM,07/12/2016,1146785,4806.55,HUBBARD & HOUGHTON CONSTRUCTION LTD,                         ,HOUSING SERVICES,Housing Renovation Grants,Not used in this Structure
Swale Borough Council,29UM,07/12/2016,1146786,1364.00,HUBBARD & HOUGHTON CONSTRUCTION LTD,                         ,HOUSING SERVICES,Housing Renovation Grants,Not used in this Structure
Swale Borough Council,29UM,07/12/2016,1146787,4770.00,J & D SYSTEMS,                         ,HOUSING SERVICES,Housing Renovation Grants,Not used in this Structure
Swale Borough Council,29UM,07/12/2016,1146788,7834.68,J & D SYSTEMS,                         ,HOUSING SERVICES,Housing Renovation Grants,Not used in this Structure
Swale Borough Council,29UM,07/12/2016,1146688,41272.38,J BREHENY CONTRACTORS LTD,01612127                 ,EMERGENCY PLANNING,Receipts in Year,Ledger/Suspense Codes
Swale Borough Council,29UM,07/12/2016,1146740,1500.00,JASMIL KENNELS,05595524                 ,ENVIRONMENTAL RESPONSE TEAM,Kennelling Of Dogs,Environmental and Regulatory Services
Swale Borough Council,29UM,07/12/2016,1146740,-190.00,JASMIL KENNELS,05595524                 ,ENVIRONMENTAL RESPONSE TEAM,Income collected by Dog Kennels,Environmental and Regulatory Services
Swale Borough Council,29UM,07/12/2016,1146638,659.60,KENT MESSENGER LTD,505554                   ,COMMUNICATIONS,Advertising & Promotion,Internal Trading Cost Centres
Swale Borough Council,29UM,07/12/2016,1146486,3060.00,KENT WILDLIFE TRUST,239992                   ,PLANNING SERVICES,Fees And Services,Planning and Development Services
Swale Borough Council,29UM,07/12/2016,1146755,481.94,LOCAL GOVERNMENT ASSOCIATION,                         ,MKS LEGAL SERVICES,Fees And Services,Internal Trading Cost Centres
Swale Borough Council,29UM,07/12/2016,1146337,134774.00,MAIDSTONE BOROUGH COUNCIL,                         ,PLANNING SERVICES,MKS Charges for Planning,Internal Trading Cost Centres
Swale Borough Council,29UM,07/12/2016,1146337,24770.00,MAIDSTONE BOROUGH COUNCIL,                         ,PLANNING SERVICES,MKS Charges for Land Charges,Central Services to the Public
Swale Borough Council,29UM,07/12/2016,1146498,234067.54,MAIDSTONE BOROUGH COUNCIL,                         ,CONTRACT & PROCUREMENT,Private Contractors,Environmental and Regulatory Services
Swale Borough Council,29UM,07/12/2016,1146714,400.00,MAIDSTONE BOROUGH COUNCIL,                         ,REVENUE SERVICES,Fees And Services,Housing
Swale Borough Council,29UM,07/12/2016,1146723,150.00,MAIDSTONE BOROUGH COUNCIL,                         ,REVENUE SERVICES,Fees And Services,Central Services to the Public
Swale Borough Council,29UM,07/12/2016,1146723,150.00,MAIDSTONE BOROUGH COUNCIL,                         ,REVENUE SERVICES,Fees And Services,Housing
Swale Borough Council,29UM,07/12/2016,1146724,800.00,MAIDSTONE BOROUGH COUNCIL,                         ,REVENUE SERVICES,Fees And Services,Central Services to the Public
Swale Borough Council,29UM,07/12/2016,1146556,1702.00,MATCHTECH,4426336                  ,PLANNING SERVICES,Agency/Contract Staff,Internal Trading Cost Centres
Swale Borough Council,29UM,07/12/2016,1146628,585.00,METRIC GROUP LTD,2560839                  ,CAR PARKS,Fees - Licence,Highway and Transport Services
Swale Borough Council,29UM,07/12/2016,1146606,3350.00,REDACTED PERSONAL INFORMATION,                         ,PLANNING SERVICES,Legal Fees,Planning and Development Services
Swale Borough Council,29UM,07/12/2016,1146745,900.00,NORMAN BROMLEY PARTNERSHIP LLP,                         ,COMMUNITY SAFETY,Capitalised Fees And Charges,Not used in this Structure
Swale Borough Council,29UM,07/12/2016,1146746,1000.00,NORMAN BROMLEY PARTNERSHIP LLP,                         ,COMMUNITY SAFETY,Capitalised Fees And Charges,Not used in this Structure
Swale Borough Council,29UM,07/12/2016,1146710,531.41,NPOWER,3432100                  ,COMMUNITY SAFETY,Electricity,Cultural and Related Services
Swale Borough Council,29UM,07/12/2016,1146710,9.97,NPOWER,3432100                  ,COMMUNITY SAFETY,Electricity,Cultural and Related Services
Swale Borough Council,29UM,07/12/2016,1145960,25.21,O2 (UK) LTD,1743099                  ,COMMUNITY SAFETY,Cellphone,Planning and Development Services
Swale Borough Council,29UM,07/12/2016,1145960,7.11,O2 (UK) LTD,1743099                  ,COMMUNITY SAFETY,Cellphone,Planning and Development Services
Swale Borough Council,29UM,07/12/2016,1145960,33.00,O2 (UK) LTD,1743099                  ,COMMUNITY SAFETY,Cellphone,Environmental and Regulatory Services
Swale Borough Council,29UM,07/12/2016,1145960,9.50,O2 (UK) LTD,1743099                  ,TRANSFORMATION PROJECT,Cellphone,Corporate & Democratic Core
Swale Borough Council,29UM,07/12/2016,1145960,9.50,O2 (UK) LTD,1743099                  ,POLICY,Cellphone,Corporate & Democratic Core
Swale Borough Council,29UM,07/12/2016,1145960,15.21,O2 (UK) LTD,1743099                  ,PLANNING SERVICES,Cellphone,Planning and Development Services
Swale Borough Council,29UM,07/12/2016,1145960,10.06,O2 (UK) LTD,1743099                  ,PLANNING SERVICES,Cellphone,Planning and Development Services
Swale Borough Council,29UM,07/12/2016,1145960,19.50,O2 (UK) LTD,1743099                  ,EMERGENCY PLANNING,Cellphone,Central Services to the Public
Swale Borough Council,29UM,07/12/2016,1145960,26.66,O2 (UK) LTD,1743099                  ,SERVICE DELIVERY,Cellphone,Cultural and Related Services
Swale Borough Council,29UM,07/12/2016,1145960,38.24,O2 (UK) LTD,1743099                  ,HOUSING SERVICES,Cellphone,Housing
Swale Borough Council,29UM,07/12/2016,1145960,22.59,O2 (UK) LTD,1743099                  ,REVENUE SERVICES,Cellphone,Housing
Swale Borough Council,29UM,07/12/2016,1145960,7.00,O2 (UK) LTD,1743099                  ,HOUSING SERVICES,Cellphone,Housing
Swale Borough Council,29UM,07/12/2016,1145960,40.80,O2 (UK) LTD,1743099                  ,PROPERTY SERVICES,Cellphone,Internal Trading Cost Centres
Swale Borough Council,29UM,07/12/2016,1145960,7.04,O2 (UK) LTD,1743099                  ,DEMOCRATIC & ELECTORAL SERVICES,Cellphone,Internal Trading Cost Centres
Swale Borough Council,29UM,07/12/2016,1145960,9.50,O2 (UK) LTD,1743099                  ,DIRECTOR OF CORPORATE SERVICES,Cellphone,Internal Trading Cost Centres
Swale Borough Council,29UM,07/12/2016,1145960,7.00,O2 (UK) LTD,1743099                  ,ECONOMY & COMMUNITIES,Cellphone,Internal Trading Cost Centres
Swale Borough Council,29UM,07/12/2016,1145960,19.00,O2 (UK) LTD,1743099                  ,TOURISM & SPORTS DEVELOPMENT,Cellphone,Internal Trading Cost Centres
Swale Borough Council,29UM,07/12/2016,1145960,18.58,O2 (UK) LTD,1743099                  ,SERVICE DELIVERY,Cellphone,Internal Trading Cost Centres
Swale Borough Council,29UM,07/12/2016,1145960,136.50,O2 (UK) LTD,1743099                  ,CONTRACT & PROCUREMENT,Cellphone,Internal Trading Cost Centres
Swale Borough Council,29UM,07/12/2016,1145960,32.52,O2 (UK) LTD,1743099                  ,ECONOMIC DEVELOPMENT,Cellphone,Internal Trading Cost Centres
Swale Borough Council,29UM,07/12/2016,1145960,50.70,O2 (UK) LTD,1743099                  ,MKS ENVIRONMENTAL SERVICES,Cellphone,Internal Trading Cost Centres
Swale Borough Council,29UM,07/12/2016,1145960,59.71,O2 (UK) LTD,1743099                  ,MKS ENVIRONMENTAL SERVICES,Cellphone,Internal Trading Cost Centres
Swale Borough Council,29UM,07/12/2016,1145960,79.00,O2 (UK) LTD,1743099                  ,ENVIRONMENTAL RESPONSE TEAM,Cellphone,Internal Trading Cost Centres
Swale Borough Council,29UM,07/12/2016,1145960,14.00,O2 (UK) LTD,1743099                  ,COMMISSIONING & CUSTOMER CONTACT,Cellphone,Internal Trading Cost Centres
Swale Borough Council,29UM,07/12/2016,1145960,9.00,O2 (UK) LTD,1743099                  ,PLANNING SERVICES,Cellphone,Internal Trading Cost Centres
Swale Borough Council,29UM,07/12/2016,1145960,68.14,O2 (UK) LTD,1743099                  ,LEISURE & OPEN SPACES,Cellphone,Internal Trading Cost Centres
Swale Borough Council,29UM,07/12/2016,1145960,65.00,O2 (UK) LTD,1743099                  ,CHIEF EXECUTIVE,Cellphone,Internal Trading Cost Centres
Swale Borough Council,29UM,07/12/2016,1145960,9.50,O2 (UK) LTD,1743099                  ,DIRECTOR OF CORPORATE SERVICES,Cellphone,Internal Trading Cost Centres
Swale Borough Council,29UM,07/12/2016,1145960,22.00,O2 (UK) LTD,1743099                  ,COMMISSIONING & CUSTOMER CONTACT,Cellphone,Internal Trading Cost Centres
Swale Borough Council,29UM,07/12/2016,1145960,7.02,O2 (UK) LTD,1743099                  ,COMMISSIONING & CUSTOMER CONTACT,Cellphone,Internal Trading Cost Centres
Swale Borough Council,29UM,07/12/2016,1145960,11.98,O2 (UK) LTD,1743099                  ,POLICY,Cellphone,Internal Trading Cost Centres
Swale Borough Council,29UM,07/12/2016,1145960,25.10,O2 (UK) LTD,1743099                  ,COMMUNICATIONS,Cellphone,Internal Trading Cost Centres
Swale Borough Council,29UM,07/12/2016,1145960,38.12,O2 (UK) LTD,1743099                  ,ENVIRONMENTAL RESPONSE TEAM,Cellphone,Internal Trading Cost Centres
Swale Borough Council,29UM,07/12/2016,1145960,40.00,O2 (UK) LTD,1743099                  ,MKS LEGAL SERVICES,Cellphone,Internal Trading Cost Centres
Swale Borough Council,29UM,07/12/2016,1145960,24.60,O2 (UK) LTD,1743099                  ,PROPERTY SERVICES,Cellphone,Internal Trading Cost Centres
Swale Borough Council,29UM,07/12/2016,1145960,2.00,O2 (UK) LTD,1743099                  ,LEISURE & OPEN SPACES,Cellphone,Cultural and Related Services
Swale Borough Council,29UM,07/12/2016,1145960,2.00,O2 (UK) LTD,1743099                  ,HOUSING SERVICES,Cellphone,Housing
Swale Borough Council,29UM,07/12/2016,1145960,34.00,O2 (UK) LTD,1743099                  ,HOUSING SERVICES,Cellphone,Housing
Swale Borough Council,29UM,07/12/2016,1145960,25.94,O2 (UK) LTD,1743099                  ,ENVIRONMENTAL RESPONSE TEAM,Cellphone,Environmental and Regulatory Services
Swale Borough Council,29UM,07/12/2016,1145960,7.30,O2 (UK) LTD,1743099                  ,TOURISM & SPORTS DEVELOPMENT,Cellphone,Cultural and Related Services
Swale Borough Council,29UM,07/12/2016,1145960,22.00,O2 (UK) LTD,1743099                  ,HOUSING SERVICES,Cellphone,Housing
Swale Borough Council,29UM,07/12/2016,1146551,539.11,PHS GROUP LTD,770813                   ,PROPERTY SERVICES,Service Contracts,Corporate & Democratic Core
Swale Borough Council,29UM,07/12/2016,1146623,290.33,PORTAKABIN LIMITED,685303                   ,LEISURE & OPEN SPACES,Maintenance - Grounds,Environmental and Regulatory Services
Swale Borough Council,29UM,07/12/2016,1146603,631.10,POSTURITE LTD,                         ,COMMUNITY SAFETY,Furniture,Environmental and Regulatory Services
Swale Borough Council,29UM,07/12/2016,1146620,380.00,PUMPS UK LTD,04501085                 ,LEISURE & OPEN SPACES,Maintenance - Grounds,Cultural and Related Services
Swale Borough Council,29UM,07/12/2016,1146617,1010.50,QS CONSULT,                         ,COMMUNITY SAFETY,Capitalised Fees And Charges,Not used in this Structure
Swale Borough Council,29UM,07/12/2016,1146574,1074.85,ROYAL MAIL GROUP LTD,4138203                  ,PROPERTY SERVICES,Postage,Holding Codes
Swale Borough Council,29UM,07/12/2016,1146717,594.30,ROYAL MAIL GROUP LTD,4138203                  ,DEMOCRATIC & ELECTORAL SERVICES,Postage,Central Services to the Public
Swale Borough Council,29UM,07/12/2016,1146580,5902.63,SHARP BUSINESS SYSTEMS UK,2136901                  ,MKS ICT,Equipment Rental,Holding Codes
Swale Borough Council,29UM,07/12/2016,1146367,622.44,SOUTHERN WATER SERVICES LIMITED,2366670                  ,CONTRACT & PROCUREMENT,Water - Metered,Environmental and Regulatory Services
Swale Borough Council,29UM,07/12/2016,1146644,604.50,VENN GROUP LIMITED,                         ,MKS LEGAL SERVICES,Agency/Contract Staff,Internal Trading Cost Centres
Swale Borough Council,29UM,07/12/2016,1146645,1230.00,VENN GROUP LIMITED,                         ,MKS LEGAL SERVICES,Agency/Contract Staff,Internal Trading Cost Centres
Swale Borough Council,29UM,07/12/2016,1146655,2250.00,WEALD WOODSCAPES LTD,8028446                  ,LEISURE & OPEN SPACES,Maintenance - Grounds,Cultural and Related Services
Swale Borough Council,29UM,07/12/2016,1146581,1300.00,WEST FAVERSHAM COMMUNITY ASSOCIATION,                         ,COMMUNITY SAFETY,Grants & Subscriptions,Central Services to the Public
Swale Borough Council,29UM,07/12/2016,1146789,5851.00,WILLOW TREE HOME SOLUTIONS LTD,                         ,HOUSING SERVICES,Housing Renovation Grants,Not used in this Structure
Swale Borough Council,29UM,07/12/2016,1146790,8445.00,WILLOW TREE HOME SOLUTIONS LTD,                         ,HOUSING SERVICES,Housing Renovation Grants,Not used in this Structure
Swale Borough Council,29UM,07/12/2016,1146494,6403.30,WYG ENVIRONMENT PLANNING TRANSPORT LTD,3050297                  ,CONTRACT & PROCUREMENT,Fees And Services,Internal Trading Cost Centres
Swale Borough Council,29UM,14/12/2016,1146914,1295.05,ACORN MAINTENANCE SERVICES,3546898                  ,HOUSING SERVICES,Housing Renovation Grants,Not used in this Structure
Swale Borough Council,29UM,14/12/2016,1146656,540.00,ACR LONDON LTD,4097241                  ,PROPERTY SERVICES,Service Contracts,Corporate & Democratic Core
Swale Borough Council,29UM,14/12/2016,1146681,480.00,AJS LTD,2944618                  ,PROPERTY SERVICES,Service Contracts,Cultural and Related Services
Swale Borough Council,29UM,14/12/2016,1146921,2055.00,ASCENDIT LIFTS LTD,3493530                  ,HOUSING SERVICES,Housing Renovation Grants,Not used in this Structure
Swale Borough Council,29UM,14/12/2016,1146619,4416.47,BLENWOOD LTD,4383277                  ,LEISURE & OPEN SPACES,Grounds Maint Suspense,Cultural and Related Services
Swale Borough Council,29UM,14/12/2016,1146640,1960.00,BT DEVELOPMENTS,                         ,HOUSING SERVICES,B & B - Landlords Payments,Housing
Swale Borough Council,29UM,14/12/2016,1146719,1120.00,CARRINGTON WEST LIMITED,07344853                 ,PLANNING SERVICES,Agency/Contract Staff,Internal Trading Cost Centres
Swale Borough Council,29UM,14/12/2016,1146874,1295.00,CARRINGTON WEST LIMITED,07344853                 ,PLANNING SERVICES,Agency/Contract Staff,Internal Trading Cost Centres
Swale Borough Council,29UM,14/12/2016,1146744,950.00,CART ASSIST LIMITED,                         ,COMMISSIONING & CUSTOMER CONTACT,Performance Fund Expenditure,Ledger/Suspense Codes
Swale Borough Council,29UM,14/12/2016,1146693,3333.33,CHALKWELL COACH HIRE LTD,2520842                  ,PLANNING SERVICES,Payments in Year,Ledger/Suspense Codes
Swale Borough Council,29UM,14/12/2016,1146844,252.22,CLEARSPRINGS (MANAGEMENT) LTD,                         ,FINANCIAL SERVICES,Awaiting Allocation,Ledger/Suspense Codes
Swale Borough Council,29UM,14/12/2016,1146607,2461.47,COMENSURA LTD,04085767                 ,HUMAN RESOURCES,Agency/Contract Staff,Internal Trading Cost Centres
Swale Borough Council,29UM,14/12/2016,1146792,3367.98,COMENSURA LTD,04085767                 ,HUMAN RESOURCES,Agency/Contract Staff,Internal Trading Cost Centres
Swale Borough Council,29UM,14/12/2016,1146697,359.00,CONTRACT SECURITY SERVICES,2461362                  ,EXCHEQUER,Cash Security,Internal Trading Cost Centres
Swale Borough Council,29UM,14/12/2016,1146697,3294.72,CONTRACT SECURITY SERVICES,2461362                  ,CAR PARKS,Cash Security,Highway and Transport Services
Swale Borough Council,29UM,14/12/2016,1146469,17451.50,DAVID HUSKISSON ASSOCIATES LIMITED,2797095                  ,PLANNING SERVICES,Consultancy/Specialist Advice,Planning and Development Services
Swale Borough Council,29UM,14/12/2016,1146639,2009.29,DHA PLANNING,2683290                  ,PLANNING SERVICES,Consultancy/Specialist Advice,Planning and Development Services
Swale Borough Council,29UM,14/12/2016,1146658,275.00,FREESTON WATER TREATMENT LTD,2002230                  ,LEISURE & OPEN SPACES,Service Contracts,Cultural and Related Services
Swale Borough Council,29UM,14/12/2016,1146659,275.00,FREESTON WATER TREATMENT LTD,2002230                  ,PROPERTY SERVICES,Service Contracts,Corporate & Democratic Core
Swale Borough Council,29UM,14/12/2016,1146651,1718.75,GRAHAM BOULDEN & COMPANY,                         ,CAR PARKS,Rent,Highway and Transport Services
Swale Borough Council,29UM,14/12/2016,1146764,3304.96,HALAROSE LIMITED,1362834                  ,DEMOCRATIC & ELECTORAL SERVICES,Fees And Services,Central Services to the Public
Swale Borough Council,29UM,14/12/2016,1146915,4950.00,HUBBARD & HOUGHTON CONSTRUCTION LTD,                         ,HOUSING SERVICES,Housing Renovation Grants,Not used in this Structure
Swale Borough Council,29UM,14/12/2016,1146916,7500.20,HUBBARD & HOUGHTON CONSTRUCTION LTD,                         ,HOUSING SERVICES,Housing Renovation Grants,Not used in this Structure
Swale Borough Council,29UM,14/12/2016,1146917,1639.66,HUBBARD & HOUGHTON CONSTRUCTION LTD,                         ,HOUSING SERVICES,Housing Renovation Grants,Not used in this Structure
Swale Borough Council,29UM,14/12/2016,1146918,1495.00,HUBBARD & HOUGHTON CONSTRUCTION LTD,                         ,HOUSING SERVICES,Housing Renovation Grants,Not used in this Structure
Swale Borough Council,29UM,14/12/2016,1146890,387.00,HUSSON UK LTD,4340391                  ,LEISURE & OPEN SPACES,Equipment Purchase,Cultural and Related Services
Swale Borough Council,29UM,14/12/2016,1146747,5500.00,IDOX SOFTWARE LTD,06706798                 ,DIRECTOR OF CORPORATE SERVICES,Computer Equipment & Materials,Environmental and Regulatory Services
Swale Borough Council,29UM,14/12/2016,1146920,488.00,J & D SYSTEMS,                         ,HOUSING SERVICES,Housing Renovation Grants,Not used in this Structure
Swale Borough Council,29UM,14/12/2016,1146706,4075.00,J N CLEARANCE,                         ,CONTRACT & PROCUREMENT,"Clearance Of Waste,Fly Tipping",Environmental and Regulatory Services
Swale Borough Council,29UM,14/12/2016,1146733,290.24,KENT COUNTY COUNCIL (KCS),                         ,CAR PARKS,Computer Equipment & Materials,Highway and Transport Services
Swale Borough Council,29UM,14/12/2016,1146858,2000.00,LEMAR LIMITED,04350292                 ,SERVICE DELIVERY,Private Contractors - CIS,Highway and Transport Services
Swale Borough Council,29UM,14/12/2016,1146858,1689.00,LEMAR LIMITED,04350292                 ,SERVICE DELIVERY,Private Contractors - CIS,Highway and Transport Services
Swale Borough Council,29UM,14/12/2016,1146859,300.00,LEMAR LIMITED,04350292                 ,LEISURE & OPEN SPACES,Maintenance - Grounds,Cultural and Related Services
Swale Borough Council,29UM,14/12/2016,1146859,150.00,LEMAR LIMITED,04350292                 ,LEISURE & OPEN SPACES,Maintenance - Grounds,Cultural and Related Services
Swale Borough Council,29UM,14/12/2016,1146860,400.00,LEMAR LIMITED,04350292                 ,SERVICE DELIVERY,Private Contractors - CIS,Highway and Transport Services
Swale Borough Council,29UM,14/12/2016,1146860,440.00,LEMAR LIMITED,04350292                 ,SERVICE DELIVERY,Private Contractors - CIS,Highway and Transport Services
Swale Borough Council,29UM,14/12/2016,1146861,350.00,LEMAR LIMITED,04350292                 ,SERVICE DELIVERY,Private Contractors - CIS,Highway and Transport Services
Swale Borough Council,29UM,14/12/2016,1146861,250.00,LEMAR LIMITED,04350292                 ,SERVICE DELIVERY,Private Contractors - CIS,Highway and Transport Services
Swale Borough Council,29UM,14/12/2016,1146864,500.00,LEMAR LIMITED,04350292                 ,SERVICE DELIVERY,Private Contractors - CIS,Highway and Transport Services
Swale Borough Council,29UM,14/12/2016,1146864,450.00,LEMAR LIMITED,04350292                 ,SERVICE DELIVERY,Private Contractors - CIS,Highway and Transport Services
Swale Borough Council,29UM,14/12/2016,1146750,280.00,LILAC ESTATES,                         ,HOUSING SERVICES,B & B - Landlords Payments,Housing
Swale Borough Council,29UM,14/12/2016,1146704,1260.00,LUSHLAND,4289261                  ,PLANNING SERVICES,Fees And Services,Planning and Development Services
Swale Borough Council,29UM,14/12/2016,1146799,867.35,REDACTED PERSONAL INFORMATION,                         ,PLANNING SERVICES,Fees And Services,Planning and Development Services
Swale Borough Council,29UM,14/12/2016,1146668,410.74,LYRECO UK LTD,                         ,PROPERTY SERVICES,Paper,Internal Trading Cost Centres
Swale Borough Council,29UM,14/12/2016,1146685,59.76,LYRECO UK LTD,                         ,PROPERTY SERVICES,Equipment Purchase,Internal Trading Cost Centres
Swale Borough Council,29UM,14/12/2016,1146685,340.00,LYRECO UK LTD,                         ,PROPERTY SERVICES,Paper,Internal Trading Cost Centres
Swale Borough Council,29UM,14/12/2016,1146721,30581.56,MAIDSTONE BOROUGH COUNCIL,                         ,CONTRACT & PROCUREMENT,Private Contractors,Environmental and Regulatory Services
Swale Borough Council,29UM,14/12/2016,1146722,43774.96,MAIDSTONE BOROUGH COUNCIL,                         ,CONTRACT & PROCUREMENT,Equipment Purchase,Environmental and Regulatory Services
Swale Borough Council,29UM,14/12/2016,1146698,1702.00,MATCHTECH,4426336                  ,PLANNING SERVICES,Agency/Contract Staff,Internal Trading Cost Centres
Swale Borough Council,29UM,14/12/2016,1146877,1702.00,MATCHTECH,4426336                  ,PLANNING SERVICES,Agency/Contract Staff,Internal Trading Cost Centres
Swale Borough Council,29UM,14/12/2016,1146780,210.00,MDA MAINTENANCE MANAGEMENT,                         ,COMMUNITY SAFETY,Service Contracts,Cultural and Related Services
Swale Borough Council,29UM,14/12/2016,1146780,210.00,MDA MAINTENANCE MANAGEMENT,                         ,COMMUNITY SAFETY,Service Contracts,Cultural and Related Services
Swale Borough Council,29UM,14/12/2016,1146780,210.00,MDA MAINTENANCE MANAGEMENT,                         ,COMMUNITY SAFETY,Service Contracts,Cultural and Related Services
Swale Borough Council,29UM,14/12/2016,1146780,400.00,MDA MAINTENANCE MANAGEMENT,                         ,PROPERTY SERVICES,Service Contracts,Corporate & Democratic Core
Swale Borough Council,29UM,14/12/2016,1146763,429.00,MEDWAY COUNCIL,                         ,FINANCIAL SERVICES,Awaiting Allocation,Ledger/Suspense Codes
Swale Borough Council,29UM,14/12/2016,1146818,3420.00,METRIC GROUP LTD,2560839                  ,CAR PARKS,Maintenance - Grounds,Highway and Transport Services
Swale Borough Council,29UM,14/12/2016,1146768,325.00,MR J W GATES,                         ,LEISURE & OPEN SPACES,Maintenance - Grounds,Cultural and Related Services
Swale Borough Council,29UM,14/12/2016,1146768,55.12,MR J W GATES,                         ,LEISURE & OPEN SPACES,Maintenance - Grounds,Cultural and Related Services
Swale Borough Council,29UM,14/12/2016,1146886,250.00,MR J W GATES,                         ,SERVICE DELIVERY,Maintenance - Grounds,Cultural and Related Services
Swale Borough Council,29UM,14/12/2016,1146886,230.00,MR J W GATES,                         ,SERVICE DELIVERY,Maintenance - Grounds,Cultural and Related Services
Swale Borough Council,29UM,14/12/2016,1146760,1350.00,NWT SUPPLIES LTD,9395474                  ,COMMISSIONING & CUSTOMER CONTACT,Communities Fund Expenditure,Ledger/Suspense Codes
Swale Borough Council,29UM,14/12/2016,1146770,5535.10,P BINNIE CONSULTANCY LTD,07794784                 ,ECONOMIC DEVELOPMENT,Consultancy/Specialist Advice,Planning and Development Services
Swale Borough Council,29UM,14/12/2016,1146532,875.00,REARDON PROPERTIES,                         ,HOUSING SERVICES,B & B - Landlords Payments,Housing
Swale Borough Council,29UM,14/12/2016,1146533,490.00,REARDON PROPERTIES,                         ,HOUSING SERVICES,B & B - Landlords Payments,Housing
Swale Borough Council,29UM,14/12/2016,1146534,560.00,REARDON PROPERTIES,                         ,HOUSING SERVICES,B & B - Landlords Payments,Housing
Swale Borough Council,29UM,14/12/2016,1146694,420.00,REARDON PROPERTIES,                         ,HOUSING SERVICES,B & B - Landlords Payments,Housing
Swale Borough Council,29UM,14/12/2016,1146696,830.00,REARDON PROPERTIES,                         ,HOUSING SERVICES,B & B - Landlords Payments,Housing
Swale Borough Council,29UM,14/12/2016,1146872,490.00,REARDON PROPERTIES,                         ,HOUSING SERVICES,B & B - Landlords Payments,Housing
Swale Borough Council,29UM,14/12/2016,1146873,875.00,REARDON PROPERTIES,                         ,HOUSING SERVICES,B & B - Landlords Payments,Housing
Swale Borough Council,29UM,14/12/2016,1146846,1478.80,RSP RAIL TRAVEL ACCOUNT - (DT),                         ,FINANCIAL SERVICES,Travel Warrants (Staff Travel),Internal Trading Cost Centres
Swale Borough Council,29UM,14/12/2016,1146702,375.00,RURAL PLANNING LTD,4426249                  ,PLANNING SERVICES,Fees And Services,Planning and Development Services
Swale Borough Council,29UM,14/12/2016,1146647,950.00,SHELTER,263210                   ,FINANCIAL SERVICES,Awaiting Allocation,Ledger/Suspense Codes
Swale Borough Council,29UM,14/12/2016,1146919,8543.88,SOUTH EAST BUILDING CO LTD,1786838                  ,HOUSING SERVICES,Housing Renovation Grants,Not used in this Structure
Swale Borough Council,29UM,14/12/2016,1146850,616.00,SOUTH WEST PLAY,                         ,LEISURE & OPEN SPACES,Equipment Purchase,Cultural and Related Services
Swale Borough Council,29UM,14/12/2016,1146777,3159.63,SOUTHERN COMMUNICATIONS LTD,1328040                  ,MKS ICT,Telephone,Corporate & Democratic Core
Swale Borough Council,29UM,14/12/2016,1146756,812.52,STM ENVIRONMENTAL CONSULTANTS LTD,4575523                  ,MKS ENVIRONMENTAL SERVICES,Computer Equipment & Materials,Internal Trading Cost Centres
Swale Borough Council,29UM,14/12/2016,1146888,1600.00,SWALE COMMUNITY LEISURE LTD,                         ,LEISURE & OPEN SPACES,Fees And Services,Cultural and Related Services
Swale Borough Council,29UM,14/12/2016,1146752,282.95,TEAMSTRIDES LTD,                         ,ECONOMY & COMMUNITIES,Communities Fund Expenditure,Ledger/Suspense Codes
Swale Borough Council,29UM,14/12/2016,1146793,1528.13,THE ALEXANDER CENTRE TRUST LIMITED,07281634                 ,COMMISSIONING & CUSTOMER CONTACT,Rent,Internal Trading Cost Centres
Swale Borough Council,29UM,14/12/2016,1146824,715.00,THE ASSOCIATION OF ELECTORAL ADMINISTRATORS,2406897                  ,DEMOCRATIC & ELECTORAL SERVICES,Conference,Central Services to the Public
Swale Borough Council,29UM,14/12/2016,1146825,715.00,THE ASSOCIATION OF ELECTORAL ADMINISTRATORS,2406897                  ,DEMOCRATIC & ELECTORAL SERVICES,Conference,Central Services to the Public
Swale Borough Council,29UM,14/12/2016,1146830,4662.68,THE NATIONAL LEAFLET COMPANY,02569979                 ,COMMUNICATIONS,Postage,Corporate & Democratic Core
Swale Borough Council,29UM,14/12/2016,1146758,308.86,THE RIVERSIDE HOUSING GROUP LTD,                         ,HOUSING SERVICES,Homelessness  Prevention Services,Housing
Swale Borough Council,29UM,14/12/2016,1146831,1625.00,THOMSON REUTERS,1679046                  ,PLANNING SERVICES,"Books, Journals & e - resources",Internal Trading Cost Centres
Swale Borough Council,29UM,14/12/2016,1146910,1025.50,TLC STAIRLIFTS LTD,OC337646                 ,HOUSING SERVICES,Housing Renovation Grants,Not used in this Structure
Swale Borough Council,29UM,14/12/2016,1146616,1665.00,TRAFALGAR TAVERN LTD,07999329                 ,HOUSING SERVICES,B & B - Landlords Payments,Housing
Swale Borough Council,29UM,14/12/2016,1146690,1715.00,TRAFALGAR TAVERN LTD,07999329                 ,HOUSING SERVICES,B & B - Landlords Payments,Housing
Swale Borough Council,29UM,14/12/2016,1146833,1230.00,VENN GROUP LIMITED,                         ,MKS LEGAL SERVICES,Agency/Contract Staff,Internal Trading Cost Centres
Swale Borough Council,29UM,14/12/2016,1146834,640.00,VENN GROUP LIMITED,                         ,MKS LEGAL SERVICES,Agency/Contract Staff,Internal Trading Cost Centres
Swale Borough Council,29UM,14/12/2016,1146411,979.83,WHISTL UK LIMITED,04417047                 ,REVENUE SERVICES,Postage,Central Services to the Public
Swale Borough Council,29UM,14/12/2016,1146411,35.65,WHISTL UK LIMITED,04417047                 ,PLANNING SERVICES,Postage,Planning and Development Services
Swale Borough Council,29UM,14/12/2016,1146411,489.91,WHISTL UK LIMITED,04417047                 ,REVENUE SERVICES,Postage,Housing
Swale Borough Council,29UM,14/12/2016,1146411,6.42,WHISTL UK LIMITED,04417047                 ,LEISURE & OPEN SPACES,Postage,Internal Trading Cost Centres
Swale Borough Council,29UM,14/12/2016,1146411,12.93,WHISTL UK LIMITED,04417047                 ,CAR PARKS,Postage,Internal Trading Cost Centres
Swale Borough Council,29UM,14/12/2016,1146411,13.92,WHISTL UK LIMITED,04417047                 ,ENVIRONMENTAL RESPONSE TEAM,Postage,Internal Trading Cost Centres
Swale Borough Council,29UM,14/12/2016,1146411,0.31,WHISTL UK LIMITED,04417047                 ,ECONOMIC DEVELOPMENT,Postage,Internal Trading Cost Centres
Swale Borough Council,29UM,14/12/2016,1146411,236.14,WHISTL UK LIMITED,04417047                 ,PROPERTY SERVICES,Postage,Holding Codes
Swale Borough Council,29UM,14/12/2016,1146411,400.63,WHISTL UK LIMITED,04417047                 ,DEMOCRATIC & ELECTORAL SERVICES,Postage,Central Services to the Public
Swale Borough Council,29UM,14/12/2016,1146608,653.91,WHISTL UK LIMITED,04417047                 ,REVENUE SERVICES,Postage,Central Services to the Public
Swale Borough Council,29UM,14/12/2016,1146608,15.72,WHISTL UK LIMITED,04417047                 ,PLANNING SERVICES,Postage,Planning and Development Services
Swale Borough Council,29UM,14/12/2016,1146608,326.95,WHISTL UK LIMITED,04417047                 ,REVENUE SERVICES,Postage,Housing
Swale Borough Council,29UM,14/12/2016,1146608,70.31,WHISTL UK LIMITED,04417047                 ,LEISURE & OPEN SPACES,Postage,Internal Trading Cost Centres
Swale Borough Council,29UM,14/12/2016,1146608,15.32,WHISTL UK LIMITED,04417047                 ,CAR PARKS,Postage,Internal Trading Cost Centres
Swale Borough Council,29UM,14/12/2016,1146608,11.93,WHISTL UK LIMITED,04417047                 ,ENVIRONMENTAL RESPONSE TEAM,Postage,Internal Trading Cost Centres
Swale Borough Council,29UM,14/12/2016,1146608,0.80,WHISTL UK LIMITED,04417047                 ,ECONOMIC DEVELOPMENT,Postage,Internal Trading Cost Centres
Swale Borough Council,29UM,14/12/2016,1146608,198.95,WHISTL UK LIMITED,04417047                 ,PROPERTY SERVICES,Postage,Holding Codes
Swale Borough Council,29UM,14/12/2016,1146608,175.75,WHISTL UK LIMITED,04417047                 ,DEMOCRATIC & ELECTORAL SERVICES,Postage,Central Services to the Public
Swale Borough Council,29UM,14/12/2016,1146741,5860.00,WHITE RESIDENTIAL,                         ,HOUSING SERVICES,B & B - Landlords Payments,Housing
Swale Borough Council,29UM,14/12/2016,1146891,110.00,WHITE RIBBON CAMPAIGN LTD,                         ,COMMUNITY SAFETY,Grants & Subscriptions,Planning and Development Services
Swale Borough Council,29UM,14/12/2016,1146891,500.00,WHITE RIBBON CAMPAIGN LTD,                         ,COMMUNITY SAFETY,Fees And Services,Environmental and Regulatory Services
Swale Borough Council,29UM,14/12/2016,1146771,495.00,WILLOW TREE HOME SOLUTIONS LTD,                         ,HOUSING SERVICES,Staying Put small repairs (contractors),Housing
Swale Borough Council,29UM,14/12/2016,1146848,993.00,WILLOW TREE HOME SOLUTIONS LTD,                         ,HOUSING SERVICES,Staying Put small repairs (contractors),Housing
Swale Borough Council,29UM,14/12/2016,1146911,3259.20,WILLOW TREE HOME SOLUTIONS LTD,                         ,HOUSING SERVICES,Housing Renovation Grants,Not used in this Structure
Swale Borough Council,29UM,14/12/2016,1146912,1965.40,WILLOW TREE HOME SOLUTIONS LTD,                         ,HOUSING SERVICES,Housing Renovation Grants,Not used in this Structure
Swale Borough Council,29UM,14/12/2016,1146369,3276.45,WYG ENVIRONMENT PLANNING TRANSPORT LTD,3050297                  ,CONTRACT & PROCUREMENT,Waste and Recycling Promotion / Comm's Projects,Environmental and Regulatory Services
Swale Borough Council,29UM,21/12/2016,1146992,850.00,ACORN MAINTENANCE SERVICES,3546898                  ,HOUSING SERVICES,Staying Put small repairs (contractors),Housing
Swale Borough Council,29UM,21/12/2016,1146995,30.93,ALLSTAR BUSINESS SOLUTIONS LTD - (DT),1073098                  ,DEMOCRATIC & ELECTORAL SERVICES,Petrol/Derv & Oil,Corporate & Democratic Core
Swale Borough Council,29UM,21/12/2016,1146995,30.32,ALLSTAR BUSINESS SOLUTIONS LTD - (DT),1073098                  ,SERVICE DELIVERY,Petrol/Derv & Oil,Cultural and Related Services
Swale Borough Council,29UM,21/12/2016,1146995,166.95,ALLSTAR BUSINESS SOLUTIONS LTD - (DT),1073098                  ,ENVIRONMENTAL RESPONSE TEAM,Fuel For Contract Vehicles,Internal Trading Cost Centres
Swale Borough Council,29UM,21/12/2016,1146995,56.02,ALLSTAR BUSINESS SOLUTIONS LTD - (DT),1073098                  ,LEISURE & OPEN SPACES,Fuel For Contract Vehicles,Cultural and Related Services
Swale Borough Council,29UM,21/12/2016,1146995,5.32,ALLSTAR BUSINESS SOLUTIONS LTD - (DT),1073098                  ,LEISURE & OPEN SPACES,Fuel For Contract Vehicles,Cultural and Related Services
Swale Borough Council,29UM,21/12/2016,1146618,107451.36,BLENWOOD LTD,4383277                  ,LEISURE & OPEN SPACES,Grounds Maint Suspense,Cultural and Related Services
Swale Borough Council,29UM,21/12/2016,1146957,544.80,BRITISH GAS BUSINESS,03078711                 ,PROPERTY SERVICES,Gas,Trading Undertaking
Swale Borough Council,29UM,21/12/2016,1146826,562.92,C.E.F. (SOUTH EAST DIVISION),                         ,PROPERTY SERVICES,Buildings Maintenance,Corporate & Democratic Core
Swale Borough Council,29UM,21/12/2016,1146909,3818.44,CANON UK LTD,1264300                  ,PROPERTY SERVICES,Equipment Maintenance,Internal Trading Cost Centres
Swale Borough Council,29UM,21/12/2016,1146652,375.00,CHURCH JESUS CHRIST LATTER DAY ST,                         ,PROPERTY SERVICES,Rent,Corporate & Democratic Core
Swale Borough Council,29UM,21/12/2016,1146545,9870.88,CIVICA UK LIMITED,1628868                  ,REVENUE SERVICES,Computer Equipment & Materials,Central Services to the Public
Swale Borough Council,29UM,21/12/2016,1146545,14806.31,CIVICA UK LIMITED,1628868                  ,REVENUE SERVICES,Computer Equipment & Materials,Housing
Swale Borough Council,29UM,21/12/2016,1146932,3965.16,COMENSURA LTD,04085767                 ,HUMAN RESOURCES,Agency/Contract Staff,Internal Trading Cost Centres
Swale Borough Council,29UM,21/12/2016,1147169,3096.20,CO-OP BANK PLC - (DT),                         ,REVENUE SERVICES,Bank Charges Pay Point,Central Services to the Public
Swale Borough Council,29UM,21/12/2016,1147169,43.90,CO-OP BANK PLC - (DT),                         ,REVENUE SERVICES,Bank Charges Pay Point,Central Services to the Public
Swale Borough Council,29UM,21/12/2016,1147169,55.10,CO-OP BANK PLC - (DT),                         ,REVENUE SERVICES,Bank Charges Pay Point,Housing
Swale Borough Council,29UM,21/12/2016,1147169,6.72,CO-OP BANK PLC - (DT),                         ,EXCHEQUER,Bank Charges Pay Point,Internal Trading Cost Centres
Swale Borough Council,29UM,21/12/2016,1147169,56.44,CO-OP BANK PLC - (DT),                         ,EXCHEQUER,Bank Charges Pay Point,Internal Trading Cost Centres
Swale Borough Council,29UM,21/12/2016,1146968,4860.83,CORE ASSETS CHILDREN'S SERVICES LTD,                         ,COMMUNITY SAFETY,Fees And Services,Planning and Development Services
Swale Borough Council,29UM,21/12/2016,1147095,5126.64,DAYTRAD LIMITED,7654373                  ,HOUSING SERVICES,Housing Renovation Grants,Not used in this Structure
Swale Borough Council,29UM,21/12/2016,1147096,4721.40,DAYTRAD LIMITED,7654373                  ,HOUSING SERVICES,Housing Renovation Grants,Not used in this Structure
Swale Borough Council,29UM,21/12/2016,1146954,200.78,DCB (KENT) LIMITED,03532339                 ,HOUSING SERVICES,Building Maintenance - Reactive,Housing
Swale Borough Council,29UM,21/12/2016,1146954,245.87,DCB (KENT) LIMITED,03532339                 ,HOUSING SERVICES,Building Maintenance - Reactive,Housing
Swale Borough Council,29UM,21/12/2016,1146954,186.22,DCB (KENT) LIMITED,03532339                 ,HOUSING SERVICES,General Maintenance,Housing
Swale Borough Council,29UM,21/12/2016,1146954,1125.81,DCB (KENT) LIMITED,03532339                 ,PROPERTY SERVICES,Non-Planned Building Maintenance,Corporate & Democratic Core
Swale Borough Council,29UM,21/12/2016,1146954,139.09,DCB (KENT) LIMITED,03532339                 ,LEISURE & OPEN SPACES,Non-Planned Building Maintenance,Cultural and Related Services
Swale Borough Council,29UM,21/12/2016,1146954,241.61,DCB (KENT) LIMITED,03532339                 ,CONTRACT & PROCUREMENT,Non-Planned Building Maintenance,Environmental and Regulatory Services
Swale Borough Council,29UM,21/12/2016,1146954,96.00,DCB (KENT) LIMITED,03532339                 ,LEISURE & OPEN SPACES,Non-Planned Building Maintenance,Cultural and Related Services
Swale Borough Council,29UM,21/12/2016,1146954,599.60,DCB (KENT) LIMITED,03532339                 ,LEISURE & OPEN SPACES,Non-Planned Building Maintenance,Cultural and Related Services
Swale Borough Council,29UM,21/12/2016,1146955,496.50,DCB (KENT) LIMITED,03532339                 ,LEISURE & OPEN SPACES,Maintenance - Grounds,Environmental and Regulatory Services
Swale Borough Council,29UM,21/12/2016,1146955,22.50,DCB (KENT) LIMITED,03532339                 ,LEISURE & OPEN SPACES,Non-Planned Building Maintenance,Environmental and Regulatory Services
Swale Borough Council,29UM,21/12/2016,1146955,249.66,DCB (KENT) LIMITED,03532339                 ,PROPERTY SERVICES,Non-Planned Building Maintenance,Cultural and Related Services
Swale Borough Council,29UM,21/12/2016,1146955,228.53,DCB (KENT) LIMITED,03532339                 ,COMMUNITY SAFETY,Non-Planned Building Maintenance,Cultural and Related Services
Swale Borough Council,29UM,21/12/2016,1146955,103.44,DCB (KENT) LIMITED,03532339                 ,COMMUNITY SAFETY,Non-Planned Building Maintenance,Cultural and Related Services
Swale Borough Council,29UM,21/12/2016,1146955,420.78,DCB (KENT) LIMITED,03532339                 ,PROPERTY SERVICES,Non-Planned Building Maintenance,Trading Undertaking
Swale Borough Council,29UM,21/12/2016,1146955,100.46,DCB (KENT) LIMITED,03532339                 ,HOUSING SERVICES,Non-Planned Building Maintenance,Housing
Swale Borough Council,29UM,21/12/2016,1146955,558.14,DCB (KENT) LIMITED,03532339                 ,PROPERTY SERVICES,Non-Planned Building Maintenance,Corporate & Democratic Core
Swale Borough Council,29UM,21/12/2016,1146955,139.57,DCB (KENT) LIMITED,03532339                 ,LEISURE & OPEN SPACES,Non-Planned Building Maintenance,Cultural and Related Services
Swale Borough Council,29UM,21/12/2016,1146955,893.13,DCB (KENT) LIMITED,03532339                 ,CONTRACT & PROCUREMENT,Non-Planned Building Maintenance,Environmental and Regulatory Services
Swale Borough Council,29UM,21/12/2016,1146955,31.17,DCB (KENT) LIMITED,03532339                 ,LEISURE & OPEN SPACES,Non-Planned Building Maintenance,Cultural and Related Services
Swale Borough Council,29UM,21/12/2016,1146956,547.50,DOCUMENT OUTPUT SOLUTIONS UK LTD,3686010                  ,REVENUE SERVICES,Fees And Services,Housing
Swale Borough Council,29UM,21/12/2016,1147099,1495.00,DOLPHIN STAIRLIFTS (KENT),04181846                 ,HOUSING SERVICES,Housing Renovation Grants,Not used in this Structure
Swale Borough Council,29UM,21/12/2016,1146866,42500.00,"DTZ CLIENT AC TESCO STORES, THE FORUM (RENT)",                         ,CAR PARKS,Rent,Highway and Transport Services
Swale Borough Council,29UM,21/12/2016,1146866,8500.00,"DTZ CLIENT AC TESCO STORES, THE FORUM (RENT)",                         ,CAR PARKS,Rent,Highway and Transport Services
Swale Borough Council,29UM,21/12/2016,1146835,150000.00,FAVERSHAM POOL MNGMT.COMMITTEE,                         ,ECONOMIC DEVELOPMENT,Capital Grants,Not used in this Structure
Swale Borough Council,29UM,21/12/2016,1147054,15185.00,GRANT THORNTON UK LLP,                         ,DIRECTOR OF CORPORATE SERVICES,External Audit Fee,Corporate & Democratic Core
Swale Borough Council,29UM,21/12/2016,1146735,106.67,GULLY HOWARD TECHNICAL,5128356                  ,COMMUNITY SAFETY,Service Contracts,Cultural and Related Services
Swale Borough Council,29UM,21/12/2016,1146735,106.67,GULLY HOWARD TECHNICAL,5128356                  ,PROPERTY SERVICES,Service Contracts,Cultural and Related Services
Swale Borough Council,29UM,21/12/2016,1146735,106.67,GULLY HOWARD TECHNICAL,5128356                  ,COMMUNITY SAFETY,Service Contracts,Cultural and Related Services
Swale Borough Council,29UM,21/12/2016,1146735,106.67,GULLY HOWARD TECHNICAL,5128356                  ,PROPERTY SERVICES,Service Contracts,Trading Undertaking
Swale Borough Council,29UM,21/12/2016,1146735,106.67,GULLY HOWARD TECHNICAL,5128356                  ,PROPERTY SERVICES,Service Contracts,Corporate & Democratic Core
Swale Borough Council,29UM,21/12/2016,1146735,106.67,GULLY HOWARD TECHNICAL,5128356                  ,PROPERTY SERVICES,Service Contracts,Non-Distributed Costs
Swale Borough Council,29UM,21/12/2016,1146735,106.67,GULLY HOWARD TECHNICAL,5128356                  ,LEISURE & OPEN SPACES,Service Contracts,Cultural and Related Services
Swale Borough Council,29UM,21/12/2016,1146735,106.67,GULLY HOWARD TECHNICAL,5128356                  ,CONTRACT & PROCUREMENT,Service Contracts,Environmental and Regulatory Services
Swale Borough Council,29UM,21/12/2016,1146735,106.67,GULLY HOWARD TECHNICAL,5128356                  ,LEISURE & OPEN SPACES,Service Contracts,Cultural and Related Services
Swale Borough Council,29UM,21/12/2016,1146855,480.00,HBINFO LTD,5779046                  ,REVENUE SERVICES,Fees And Services,Housing
Swale Borough Council,29UM,21/12/2016,1147010,390.00,HUBBARD & HOUGHTON CONSTRUCTION LTD,                         ,HOUSING SERVICES,Staying Put small repairs (contractors),Housing
Swale Borough Council,29UM,21/12/2016,1147093,1655.00,HUBBARD & HOUGHTON CONSTRUCTION LTD,                         ,HOUSING SERVICES,Housing Renovation Grants,Not used in this Structure
Swale Borough Council,29UM,21/12/2016,1147094,1430.10,HUBBARD & HOUGHTON CONSTRUCTION LTD,                         ,HOUSING SERVICES,Housing Renovation Grants,Not used in this Structure
Swale Borough Council,29UM,21/12/2016,1147051,390.55,INSIGHT DIRECT (UK) LTD,2579852                  ,MKS ICT,Payments in Year,Ledger/Suspense Codes
Swale Borough Council,29UM,21/12/2016,1146749,495.00,KEEP BRITAIN TIDY,                         ,CONTRACT & PROCUREMENT,Equipment Purchase,Internal Trading Cost Centres
Swale Borough Council,29UM,21/12/2016,1147005,12976.00,KENT COMMUNITY HEALTH NHS TRUST,                         ,TOURISM & SPORTS DEVELOPMENT,Fees And Services,Cultural and Related Services
Swale Borough Council,29UM,21/12/2016,1146853,4240.84,KENT COUNTY COUNCIL (KCS),                         ,PROPERTY SERVICES,Electricity,Corporate & Democratic Core
Swale Borough Council,29UM,21/12/2016,1146950,4858.73,KENT COUNTY COUNCIL (KCS),                         ,PROPERTY SERVICES,Electricity,Corporate & Democratic Core
Swale Borough Council,29UM,21/12/2016,1146627,16451.63,KGB CLEANING & SUPPORT SERVICES LTD,                         ,CONTRACT & PROCUREMENT,Private Contractors,Environmental and Regulatory Services
Swale Borough Council,29UM,21/12/2016,1146188,2500.00,LEMAR LIMITED,04350292                 ,LEISURE & OPEN SPACES,Maintenance - Grounds,Environmental and Regulatory Services
Swale Borough Council,29UM,21/12/2016,1146188,8058.75,LEMAR LIMITED,04350292                 ,LEISURE & OPEN SPACES,Maintenance - Grounds,Environmental and Regulatory Services
Swale Borough Council,29UM,21/12/2016,1146970,240.00,LEMAR LIMITED,04350292                 ,SERVICE DELIVERY,Private Contractors - CIS,Highway and Transport Services
Swale Borough Council,29UM,21/12/2016,1146970,300.00,LEMAR LIMITED,04350292                 ,SERVICE DELIVERY,Private Contractors - CIS,Highway and Transport Services
Swale Borough Council,29UM,21/12/2016,1146937,442.04,LEXISNEXIS UK,2746621                  ,MKS LEGAL SERVICES,"Books, Journals & e - resources",Internal Trading Cost Centres
Swale Borough Council,29UM,21/12/2016,1146937,461.96,LEXISNEXIS UK,2746621                  ,MKS LEGAL SERVICES,"Books, Journals & e - resources",Internal Trading Cost Centres
Swale Borough Council,29UM,21/12/2016,1146998,1413.51,LLOYDS BANK - (DT),                         ,FINANCIAL SERVICES,Bank Charges,Corporate & Democratic Core
Swale Borough Council,29UM,21/12/2016,1147053,498.00,LOCAL GOVERNMENT ASSOCIATION,                         ,DEMOCRATIC & ELECTORAL SERVICES,Conference,Corporate & Democratic Core
Swale Borough Council,29UM,21/12/2016,1146713,62024.63,MAIDSTONE BOROUGH COUNCIL,                         ,HUMAN RESOURCES,MKS Charges for HR Service,Internal Trading Cost Centres
Swale Borough Council,29UM,21/12/2016,1146720,11961.12,MAIDSTONE BOROUGH COUNCIL,                         ,CONTRACT & PROCUREMENT,Equipment Purchase,Environmental and Regulatory Services
Swale Borough Council,29UM,21/12/2016,1146725,3850.00,MAIDSTONE BOROUGH COUNCIL,                         ,CAR PARKS,Computer Equipment & Materials,Highway and Transport Services
Swale Borough Council,29UM,21/12/2016,1146725,3850.00,MAIDSTONE BOROUGH COUNCIL,                         ,CAR PARKS,Computer Equipment & Materials,Highway and Transport Services
Swale Borough Council,29UM,21/12/2016,1147077,1925.10,MAIDSTONE BOROUGH COUNCIL,                         ,FINANCIAL SERVICES,Awaiting Allocation,Ledger/Suspense Codes
Swale Borough Council,29UM,21/12/2016,1147171,929163.00,MAIDSTONE BOROUGH COUNCIL - DT,                         ,FINANCIAL SERVICES,Tariff to Gvt,Taxation and Non-Specific Grant Income
Swale Borough Council,29UM,21/12/2016,1147171,1092045.00,MAIDSTONE BOROUGH COUNCIL - DT,                         ,FINANCIAL SERVICES,Levy to Pool,Taxation and Non-Specific Grant Income
Swale Borough Council,29UM,21/12/2016,1147171,24239.00,MAIDSTONE BOROUGH COUNCIL - DT,                         ,FINANCIAL SERVICES,Levy to Gvt,Taxation and Non-Specific Grant Income
Swale Borough Council,29UM,21/12/2016,1147171,-658076.00,MAIDSTONE BOROUGH COUNCIL - DT,                         ,FINANCIAL SERVICES,Contribution to SBC from Pool,Taxation and Non-Specific Grant Income
Swale Borough Council,29UM,21/12/2016,1147073,1438.00,MAYLOW CONSTRUCTION LTD,                         ,LEISURE & OPEN SPACES,Maintenance - Grounds,Cultural and Related Services
Swale Borough Council,29UM,21/12/2016,1146766,375.00,REDACTED PERSONAL INFORMATION,                         ,ENVIRONMENTAL RESPONSE TEAM,Legal Fees,Internal Trading Cost Centres
Swale Borough Council,29UM,21/12/2016,1146766,75.00,REDACTED PERSONAL INFORMATION,                         ,ENVIRONMENTAL RESPONSE TEAM,Legal Fees,Internal Trading Cost Centres
Swale Borough Council,29UM,21/12/2016,1146985,325.00,REDACTED PERSONAL INFORMATION,                         ,ENVIRONMENTAL RESPONSE TEAM,Legal Fees,Internal Trading Cost Centres
Swale Borough Council,29UM,21/12/2016,1146985,65.00,REDACTED PERSONAL INFORMATION,                         ,ENVIRONMENTAL RESPONSE TEAM,Legal Fees,Internal Trading Cost Centres
Swale Borough Council,29UM,21/12/2016,1146986,250.00,REDACTED PERSONAL INFORMATION,                         ,ENVIRONMENTAL RESPONSE TEAM,Legal Fees,Internal Trading Cost Centres
Swale Borough Council,29UM,21/12/2016,1146986,50.00,REDACTED PERSONAL INFORMATION,                         ,ENVIRONMENTAL RESPONSE TEAM,Legal Fees,Internal Trading Cost Centres
Swale Borough Council,29UM,21/12/2016,1147092,455.50,REDACTED PERSONAL INFORMATION,                         ,LEISURE & OPEN SPACES,Ex-Gratia Payments,Environmental and Regulatory Services
Swale Borough Council,29UM,21/12/2016,1146905,3250.00,REDACTED PERSONAL INFORMATION,                         ,PLANNING SERVICES,Legal Fees,Internal Trading Cost Centres
Swale Borough Council,29UM,21/12/2016,1146905,650.00,REDACTED PERSONAL INFORMATION,                         ,PLANNING SERVICES,Legal Fees,Internal Trading Cost Centres
Swale Borough Council,29UM,21/12/2016,1146893,9335.00,NORTHERN DESIGN COLLECTIVE,05335963                 ,DIRECTOR OF REGENERATION,Recruitment Adverts - Staff,Planning and Development Services
Swale Borough Council,29UM,21/12/2016,1147021,395.99,NPOWER,                         ,LEISURE & OPEN SPACES,Electricity,Cultural and Related Services
Swale Borough Council,29UM,21/12/2016,1146906,376.00,OBSIDIAN SECURITY LTD.,                         ,PROPERTY SERVICES,Buildings Maintenance,Corporate & Democratic Core
Swale Borough Council,29UM,21/12/2016,1146907,792.00,OBSIDIAN SECURITY LTD.,                         ,PROPERTY SERVICES,Buildings Maintenance,Corporate & Democratic Core
Swale Borough Council,29UM,21/12/2016,1147162,15697.00,PEAC HOLDINGS (UK) LTD (DT),3088213                  ,LEISURE & OPEN SPACES,Contracts,Cultural and Related Services
Swale Borough Council,29UM,21/12/2016,1147163,15697.00,PEAC HOLDINGS (UK) LTD (DT),3088213                  ,LEISURE & OPEN SPACES,Contracts,Cultural and Related Services
Swale Borough Council,29UM,21/12/2016,1147164,15697.00,PEAC HOLDINGS (UK) LTD (DT),3088213                  ,LEISURE & OPEN SPACES,Contracts,Cultural and Related Services
Swale Borough Council,29UM,21/12/2016,1146868,191293.39,PERSIMMON HOMES SOUTH EAST,                         ,FINANCIAL SERVICES,Awaiting Allocation,Ledger/Suspense Codes
Swale Borough Council,29UM,21/12/2016,1146715,3690.00,PETER BRETT ASSOCIATES LLP,OC334398                 ,PLANNING SERVICES,Fees And Services,Planning and Development Services
Swale Borough Council,29UM,21/12/2016,1147052,280.00,PMC POLYTHENE LTD,                         ,ENVIRONMENTAL RESPONSE TEAM,Equipment Purchase,Internal Trading Cost Centres
Swale Borough Council,29UM,21/12/2016,1146776,390.00,PUTLANDS VETERINARY SURGERY,                         ,ENVIRONMENTAL RESPONSE TEAM,Fees - Veterinary,Environmental and Regulatory Services
Swale Borough Council,29UM,21/12/2016,1147174,9.10,RBS PURCHASING CARD (DT) - SAINSBURY'S,,DEMOCRATIC & ELECTORAL SERVICES,Catering Provisions,Corporate & Democratic Core
Swale Borough Council,29UM,21/12/2016,1147174,16.05,RBS PURCHASING CARD (DT) - SAINSBURY'S,,DEMOCRATIC & ELECTORAL SERVICES,Catering Provisions,Corporate & Democratic Core
Swale Borough Council,29UM,21/12/2016,1147175,20.57,RBS PURCHASING CARD (DT) - AMAZON,,LEISURE & OPEN SPACES,Swale in Bloom,Cultural and Related Services
Swale Borough Council,29UM,21/12/2016,1147175,25.24,RBS PURCHASING CARD (DT) - SAINSBURY'S,,TOURISM & SPORTS DEVELOPMENT,Catering Provisions,Cultural and Related Services
Swale Borough Council,29UM,21/12/2016,1147175,64.50,RBS PURCHASING CARD (DT) - BAILEYS,,TOURISM & SPORTS DEVELOPMENT,Catering Provisions,Internal Trading Cost Centres
Swale Borough Council,29UM,21/12/2016,1147175,17.74,RBS PURCHASING CARD (DT) - M&A STATIONERS,,LEISURE & OPEN SPACES,Swale in Bloom,Cultural and Related Services
Swale Borough Council,29UM,21/12/2016,1147175,14.92,RBS PURCHASING CARD (DT) - ALWAYSWELCOME15,,LEISURE & OPEN SPACES,Swale in Bloom,Cultural and Related Services
Swale Borough Council,29UM,21/12/2016,1147175,13.98,RBS PURCHASING CARD (DT) - TRADERSUPPLIESOUTLET,,LEISURE & OPEN SPACES,Swale in Bloom,Cultural and Related Services
Swale Borough Council,29UM,21/12/2016,1147175,17.95,RBS PURCHASING CARD (DT) - YOLA.COM,,LEISURE & OPEN SPACES,Swale in Bloom,Cultural and Related Services
Swale Borough Council,29UM,21/12/2016,1147176,44.20,RBS PURCHASING CARD (DT) - THERMOMETERSDIRECT,                         ,PROPERTY SERVICES,Equipment Purchase,Corporate & Democratic Core
Swale Borough Council,29UM,21/12/2016,1147176,434.50,RBS PURCHASING CARD (DT) - KNIGHT AIR PRODUCTS LTD,                         ,PROPERTY SERVICES,Non-Planned Building Maintenance,Corporate & Democratic Core
Swale Borough Council,29UM,21/12/2016,1147176,43.49,RBS PURCHASING CARD (DT) - TRADEFRAMES,                         ,PROPERTY SERVICES,Equipment Purchase,Corporate & Democratic Core
Swale Borough Council,29UM,21/12/2016,1147177,7.50,RBS PURCHASING CARD (DT) - WILKO,,DEMOCRATIC & ELECTORAL SERVICES,Stationery,Internal Trading Cost Centres
Swale Borough Council,29UM,21/12/2016,1147177,60.00,RBS PURCHASING CARD (DT) - FLOWERS BY BEATRICE,,DEMOCRATIC & ELECTORAL SERVICES,Remembrance Sunday Parades,Corporate & Democratic Core
Swale Borough Council,29UM,21/12/2016,1147177,25.00,RBS PURCHASING CARD (DT) - FLOWERS BY BEATRICE,,DEMOCRATIC & ELECTORAL SERVICES,Hospitality Allowance - Mayor,Corporate & Democratic Core
Swale Borough Council,29UM,21/12/2016,1147177,5.47,RBS PURCHASING CARD (DT) - TESCO,,DEMOCRATIC & ELECTORAL SERVICES,Hospitality Allowance - Mayor,Corporate & Democratic Core
Swale Borough Council,29UM,21/12/2016,1147178,3.00,RBS PURCHASING CARD (DT) - SAINSBURY'S,,DIRECTOR OF CORPORATE SERVICES,Catering Provisions,Internal Trading Cost Centres
Swale Borough Council,29UM,21/12/2016,1147178,24.89,RBS PURCHASING CARD (DT) - DHL,,PLANNING SERVICES,Postage,Planning and Development Services
Swale Borough Council,29UM,21/12/2016,1147179,56.02,RBS PURCHASING CARD (DT) - DHL,,PLANNING SERVICES,Postage,Planning and Development Services
Swale Borough Council,29UM,21/12/2016,1147179,17.75,RBS PURCHASING CARD (DT) - SAINSBURY'S,,DIRECTOR OF REGENERATION,Catering Provisions,Internal Trading Cost Centres
Swale Borough Council,29UM,21/12/2016,1147180,120.40,RBS PURCHASING CARD (DT) - SOUTHERN WATER,,HOUSING SERVICES,Water - Rateable Value,Housing
Swale Borough Council,29UM,21/12/2016,1147180,12.00,RBS PURCHASING CARD (DT) - WILKO,,HOUSING SERVICES,Building Maintenance - Reactive,Housing
Swale Borough Council,29UM,21/12/2016,1147180,4.70,RBS PURCHASING CARD (DT) - SAINSBURY'S,,HOUSING SERVICES,Catering Provisions,Housing
Swale Borough Council,29UM,21/12/2016,1147181,142.00,RBS PURCHASING CARD (DT) - VIRGIN TRAINS,                         ,TRANSFORMATION PROJECT,Staff Travel-Buses & Trains,Corporate & Democratic Core
Swale Borough Council,29UM,21/12/2016,1147181,75.00,RBS PURCHASING CARD (DT) - UPCHURCH RIVER VALLEY GOLF CLUB,                         ,CHIEF EXECUTIVE,Prizes/Awards,Corporate & Democratic Core
Swale Borough Council,29UM,21/12/2016,1147181,25.00,RBS PURCHASING CARD (DT) - THE SUN INN,                         ,CHIEF EXECUTIVE,Prizes/Awards,Corporate & Democratic Core
Swale Borough Council,29UM,21/12/2016,1147181,95.00,RBS PURCHASING CARD (DT) - WH SMITH,                         ,CHIEF EXECUTIVE,Prizes/Awards,Corporate & Democratic Core
Swale Borough Council,29UM,21/12/2016,1147181,16.75,RBS PURCHASING CARD (DT) - POUNDLAND,                         ,CHIEF EXECUTIVE,Catering Provisions,Corporate & Democratic Core
Swale Borough Council,29UM,21/12/2016,1147181,55.79,RBS PURCHASING CARD (DT) - ALDI,                         ,CHIEF EXECUTIVE,Catering Provisions,Corporate & Democratic Core
Swale Borough Council,29UM,21/12/2016,1147181,21.17,RBS PURCHASING CARD (DT) - ALDI,                         ,CHIEF EXECUTIVE,Catering Provisions,Corporate & Democratic Core
Swale Borough Council,29UM,21/12/2016,1147182,780.00,RBS PURCHASING CARD (DT) - HM COURTS,                         ,REVENUE SERVICES,Court Costs,Central Services to the Public
Swale Borough Council,29UM,21/12/2016,1147182,7.47,RBS PURCHASING CARD (DT) - AMAZON,                         ,REVENUE SERVICES,Conference,Housing
Swale Borough Council,29UM,21/12/2016,1147182,130.00,RBS PURCHASING CARD (DT) - SHELTER,                         ,REVENUE SERVICES,"Books, Journals & e - resources",Housing
Swale Borough Council,29UM,21/12/2016,1147182,58.30,RBS PURCHASING CARD (DT) - SAINSBURY'S,                         ,REVENUE SERVICES,Catering Provisions,Housing
Swale Borough Council,29UM,21/12/2016,1147183,2.45,RBS PURCHASING CARD (DT) - HOMEBASE,,HOUSING SERVICES,Staying Put - Materials,Housing
Swale Borough Council,29UM,21/12/2016,1147183,18.00,RBS PURCHASING CARD (DT) - A S BELL LTD,,HOUSING SERVICES,Staying Put - Materials,Housing
Swale Borough Council,29UM,21/12/2016,1147184,5.80,RBS PURCHASING CARD (DT) - PAYBYPHONE PARKING,,MKS LEGAL SERVICES,Car Park Fees,Internal Trading Cost Centres
Swale Borough Council,29UM,21/12/2016,1147185,175.00,RBS PURCHASING CARD (DT) - CIEH,,ENVIRONMENTAL HEALTH,Officer Subscriptions,Internal Trading Cost Centres
Swale Borough Council,29UM,21/12/2016,1147186,78.74,RBS PURCHASING CARD (DT) - PET TECHNOLOGY STORE,,ENVIRONMENTAL RESPONSE TEAM,Equipment Purchase,Environmental and Regulatory Services
Swale Borough Council,29UM,21/12/2016,1147186,5.49,RBS PURCHASING CARD (DT) - PET TECHNOLOGY STORE,,ENVIRONMENTAL RESPONSE TEAM,Equipment Purchase,Environmental and Regulatory Services
Swale Borough Council,29UM,21/12/2016,1147187,70.00,RBS PURCHASING CARD (DT) - MORRISONS,,PROPERTY SERVICES,Equipment Purchase,Corporate & Democratic Core
Swale Borough Council,29UM,21/12/2016,1147187,19.99,RBS PURCHASING CARD (DT) - AUTOWASH,,PROPERTY SERVICES,Cleaning Materials,Internal Trading Cost Centres
Swale Borough Council,29UM,21/12/2016,1147187,19.99,RBS PURCHASING CARD (DT) - AUTOWASH,,PROPERTY SERVICES,Cleaning Materials,Cultural and Related Services
Swale Borough Council,29UM,21/12/2016,1147187,5.00,RBS PURCHASING CARD (DT) - OASIS,,CONTRACT & PROCUREMENT,Non-Planned Building Maintenance,Environmental and Regulatory Services
Swale Borough Council,29UM,21/12/2016,1147190,1497.00,RBS PURCHASING CARD (DT) - HM COURTS,                         ,REVENUE SERVICES,Fees And Services,Central Services to the Public
Swale Borough Council,29UM,21/12/2016,1147056,276.27,ROYAL MAIL GROUP LTD,4138203                  ,DEMOCRATIC & ELECTORAL SERVICES,Postage,Central Services to the Public
Swale Borough Council,29UM,21/12/2016,1147034,300.00,RUSTY GATES,                         ,LEISURE & OPEN SPACES,Maintenance - Grounds,Environmental and Regulatory Services
Swale Borough Council,29UM,21/12/2016,1147165,2968.00,SERCO PAISA LTD - (DT),04908482                 ,LEISURE & OPEN SPACES,Contracts,Cultural and Related Services
Swale Borough Council,29UM,21/12/2016,1147166,2968.00,SERCO PAISA LTD - (DT),04908482                 ,LEISURE & OPEN SPACES,Contracts,Cultural and Related Services
Swale Borough Council,29UM,21/12/2016,1147167,2968.00,SERCO PAISA LTD - (DT),04908482                 ,LEISURE & OPEN SPACES,Contracts,Cultural and Related Services
Swale Borough Council,29UM,21/12/2016,1147097,4300.00,SOUTH EAST BUILDING CO LTD,1786838                  ,HOUSING SERVICES,Housing Renovation Grants,Not used in this Structure
Swale Borough Council,29UM,21/12/2016,1146889,2137.80,THE JOHN WOODWARD PARTNERSHIP,                         ,PLANNING SERVICES,Fees And Services,Planning and Development Services
Swale Borough Council,29UM,21/12/2016,1146897,7500.00,TURNBERRY REAL ESTATE LIMITED,8496875                  ,ECONOMIC DEVELOPMENT,Consultancy/Specialist Advice,Planning and Development Services
Swale Borough Council,29UM,21/12/2016,1146966,1230.00,VENN GROUP LIMITED,                         ,MKS LEGAL SERVICES,Agency/Contract Staff,Internal Trading Cost Centres
Swale Borough Council,29UM,21/12/2016,1146967,624.00,VENN GROUP LIMITED,                         ,MKS LEGAL SERVICES,Agency/Contract Staff,Internal Trading Cost Centres
Swale Borough Council,29UM,21/12/2016,1146962,415.00,WILLOW TREE HOME SOLUTIONS LTD,                         ,HOUSING SERVICES,Staying Put small repairs (contractors),Housing
Swale Borough Council,29UM,21/12/2016,1147170,4164.57,WORLDPAY (DT),07316500                 ,REVENUE SERVICES,Commission Paid,Central Services to the Public
Swale Borough Council,29UM,21/12/2016,1147170,267.52,WORLDPAY (DT),07316500                 ,REVENUE SERVICES,Commission Paid,Central Services to the Public
Swale Borough Council,29UM,21/12/2016,1147170,51.09,WORLDPAY (DT),07316500                 ,REVENUE SERVICES,Commission Paid,Housing
Swale Borough Council,29UM,21/12/2016,1147170,12.07,WORLDPAY (DT),07316500                 ,EXCHEQUER,Commission Paid,Internal Trading Cost Centres
Swale Borough Council,29UM,21/12/2016,1147170,992.26,WORLDPAY (DT),07316500                 ,EXCHEQUER,Commission Paid,Internal Trading Cost Centres
Swale Borough Council,29UM,21/12/2016,1147170,451.21,WORLDPAY (DT),07316500                 ,EXCHEQUER,Commission Paid,Internal Trading Cost Centres
Swale Borough Council,29UM,21/12/2016,1147170,9.99,WORLDPAY (DT),07316500                 ,MKS ICT,Fees And Services,Internal Trading Cost Centres
